[Event "Titled Tuesday Blitz April 26 Early 2022"]
[White "D`Arruda, Ricardo D."]
[Black "Unver, Cumali"]
[WhiteFideId "100692"]
[BlackFideId "6304940"]
[WhiteElo "2416"]
[BlackElo "2013"]
[Result "1/2-1/2"]
[Round "03"]
[TimeControl "180+1"]
[Date "2022.04.26"]
[WhiteClock "0:00:59"]
[BlackClock "0:00:42"]

1. Nf3 {[%clk 0:03:00]}  Nf6 {[%clk 0:02:59]} 2. d4 {[%clk 0:03:01]}  g6 {[%clk 0:02:59]} 3. Nc3 {[%clk 0:03:00]}  Bg7 {[%clk 0:02:59]} 4. e4 {[%clk 0:03:00]}  d6 {[%clk 0:02:59]} 5. Bg5 {[%clk 0:03:00]}  O-O {[%clk 0:02:58]} 6. Qd2 {[%clk 0:03:00]}  c5 {[%clk 0:02:57]} 7. dxc5 {[%clk 0:02:59]}  dxc5 {[%clk 0:02:56]} 8. Qxd8 {[%clk 0:02:58]}  Rxd8 {[%clk 0:02:56]} 9. e5 {[%clk 0:02:59]}  Ng4 {[%clk 0:02:39]} 10. Bxe7 {[%clk 0:02:57]}  Re8 {[%clk 0:02:39]} 11. Bxc5 {[%clk 0:02:56]}  Nxe5 {[%clk 0:02:38]} 12. Nxe5 {[%clk 0:02:55]}  Rxe5+ {[%clk 0:02:36]} 13. Be3 {[%clk 0:02:55]}  Bh6 {[%clk 0:02:24]} 14. O-O-O {[%clk 0:02:54]}  Bxe3+ {[%clk 0:02:22]} 15. fxe3 {[%clk 0:02:55]}  Nc6 {[%clk 0:02:21]} 16. e4 {[%clk 0:02:54]}  Bg4 {[%clk 0:02:11]} 17. Rd2 {[%clk 0:02:44]}  f5 {[%clk 0:02:08]} 18. Bc4+ {[%clk 0:02:38]}  Kh8 {[%clk 0:02:08]} 19. h3 {[%clk 0:02:22]}  Bh5 {[%clk 0:02:04]} 20. exf5 {[%clk 0:02:17]}  gxf5 {[%clk 0:02:04]} 21. Rd5 {[%clk 0:02:14]}  Rae8 {[%clk 0:02:00]} 22. Rxe5 {[%clk 0:02:12]}  Rxe5 {[%clk 0:02:00]} 23. Rf1 {[%clk 0:02:10]}  Kg7 {[%clk 0:01:57]} 24. Bd5 {[%clk 0:02:07]}  Be8 {[%clk 0:01:27]} 25. Kd2 {[%clk 0:02:02]}  b6 {[%clk 0:01:22]} 26. Re1 {[%clk 0:01:54]}  Rxe1 {[%clk 0:01:19]} 27. Kxe1 {[%clk 0:01:55]}  Nd4 {[%clk 0:01:19]} 28. Kd2 {[%clk 0:01:52]}  f4 {[%clk 0:01:14]} 29. Ne2 {[%clk 0:01:45]}  Nxe2 {[%clk 0:01:13]} 30. Kxe2 {[%clk 0:01:46]}  Kf6 {[%clk 0:01:13]} 31. Be4 {[%clk 0:01:35]}  h6 {[%clk 0:01:11]} 32. Kf3 {[%clk 0:01:33]}  Ke5 {[%clk 0:01:09]} 33. Bd3 {[%clk 0:01:25]}  Bh5+ {[%clk 0:01:06]} 34. Kf2 {[%clk 0:01:25]}  a5 {[%clk 0:01:00]} 35. c3 {[%clk 0:01:25]}  Bf7 {[%clk 0:00:54]} 36. g3 {[%clk 0:01:24]}  Bxa2 {[%clk 0:00:53]} 37. h4 {[%clk 0:01:17]}  Bd5 {[%clk 0:00:51]} 38. Bb5 {[%clk 0:01:15]}  fxg3+ {[%clk 0:00:49]} 39. Kxg3 {[%clk 0:01:15]}  Kf5 {[%clk 0:00:49]} 40. Bd3+ {[%clk 0:01:14]}  Ke5 {[%clk 0:00:46]} 41. Kg4 {[%clk 0:01:13]}  Bf7 {[%clk 0:00:46]} 42. Bc2 {[%clk 0:01:09]}  b5 {[%clk 0:00:44]} 43. Bd3 {[%clk 0:01:05]}  b4 {[%clk 0:00:44]} 44. cxb4 {[%clk 0:01:05]}  axb4 {[%clk 0:00:44]} 45. Bb1 {[%clk 0:01:01]}  Be8 {[%clk 0:00:42]} 46. Bh7 {[%clk 0:00:59]}  Bf7 {[%clk 0:00:41]} 47. Bc2 {[%clk 0:00:58]}  Be8 {[%clk 0:00:41]} 48. Bb1 {[%clk 0:00:59]}  Bf7 {[%clk 0:00:41]} 49. Bc2 {[%clk 0:00:59]}  Be8 {[%clk 0:00:41]} 50. Bb1 {[%clk 0:00:59]}  Bf7 {[%clk 0:00:42]} 51. Bc2 {[%clk 0:00:59]} 1/2-1/2


[Site "https://www.chess.com"]

[Event "Titled Tuesday Blitz April 26 Early 2022"]
[White "Darini, Pouria"]
[Black "Jumabayev, Rinat"]
[WhiteFideId "12502200"]
[BlackFideId "13702661"]
[WhiteElo "2489"]
[BlackElo "2561"]
[Result "1-0"]
[Round "03"]
[TimeControl "180+1"]
[Date "2022.04.26"]
[WhiteClock "0:00:12"]
[BlackClock "0:00:05"]

1. e4 {[%clk 0:03:00]}  e5 {[%clk 0:03:00]} 2. Nf3 {[%clk 0:03:01]}  Nc6 {[%clk 0:03:01]} 3. d4 {[%clk 0:03:01]}  exd4 {[%clk 0:03:00]} 4. Nxd4 {[%clk 0:03:02]}  Bb4+ {[%clk 0:02:48]} 5. c3 {[%clk 0:03:01]}  Bc5 {[%clk 0:02:49]} 6. Be3 {[%clk 0:03:02]}  Bb6 {[%clk 0:02:48]} 7. Nf5 {[%clk 0:03:02]}  Bxe3 {[%clk 0:02:43]} 8. Nxe3 {[%clk 0:03:03]}  Nf6 {[%clk 0:02:43]} 9. f3 {[%clk 0:03:04]}  O-O {[%clk 0:02:44]} 10. c4 {[%clk 0:03:04]}  Re8 {[%clk 0:02:43]} 11. Nc3 {[%clk 0:03:04]}  d6 {[%clk 0:02:44]} 12. Qd2 {[%clk 0:03:03]}  a6 {[%clk 0:02:43]} 13. Bd3 {[%clk 0:03:03]}  Be6 {[%clk 0:02:42]} 14. O-O {[%clk 0:03:03]}  Nd7 {[%clk 0:02:40]} 15. f4 {[%clk 0:02:45]}  f6 {[%clk 0:02:39]} 16. Rae1 {[%clk 0:02:36]}  Nc5 {[%clk 0:02:38]} 17. Bb1 {[%clk 0:02:31]}  b5 {[%clk 0:02:36]} 18. cxb5 {[%clk 0:02:22]}  axb5 {[%clk 0:02:37]} 19. Nxb5 {[%clk 0:02:22]}  Qb8 {[%clk 0:02:06]} 20. Nc3 {[%clk 0:02:18]}  Bf7 {[%clk 0:01:57]} 21. b3 {[%clk 0:02:09]}  Nb4 {[%clk 0:01:43]} 22. Kh1 {[%clk 0:02:02]}  Kh8 {[%clk 0:01:42]} 23. Nf5 {[%clk 0:01:48]}  Bg6 {[%clk 0:01:31]} 24. Nd4 {[%clk 0:01:46]}  Qb7 {[%clk 0:01:27]} 25. f5 {[%clk 0:01:32]}  Bf7 {[%clk 0:01:26]} 26. Rf4 {[%clk 0:01:22]}  d5 {[%clk 0:01:22]} 27. h3 {[%clk 0:00:56]}  Rad8 {[%clk 0:00:49]} 28. a3 {[%clk 0:00:52]}  dxe4 {[%clk 0:00:37]} 29. axb4 {[%clk 0:00:49]}  Nxb3 {[%clk 0:00:28]} 30. Nxb3 {[%clk 0:00:47]}  Rxd2 {[%clk 0:00:29]} 31. Nxd2 {[%clk 0:00:48]}  e3 {[%clk 0:00:28]} 32. Nde4 {[%clk 0:00:41]}  Qxb4 {[%clk 0:00:24]} 33. Rf3 {[%clk 0:00:40]}  Rd8 {[%clk 0:00:18]} 34. Rfxe3 {[%clk 0:00:40]}  h6 {[%clk 0:00:19]} 35. Ba2 {[%clk 0:00:34]}  Bxa2 {[%clk 0:00:09]} 36. Nxa2 {[%clk 0:00:35]}  Qc4 {[%clk 0:00:10]} 37. Nac3 {[%clk 0:00:35]}  Rd3 {[%clk 0:00:10]} 38. Rxd3 {[%clk 0:00:35]}  Qxd3 {[%clk 0:00:10]} 39. Rd1 {[%clk 0:00:36]}  Qc2 {[%clk 0:00:10]} 40. Rd8+ {[%clk 0:00:33]}  Kh7 {[%clk 0:00:10]} 41. Kh2 {[%clk 0:00:32]}  Qc1 {[%clk 0:00:10]} 42. Rd2 {[%clk 0:00:33]}  c5 {[%clk 0:00:09]} 43. Rf2 {[%clk 0:00:32]}  c4 {[%clk 0:00:09]} 44. Rf3 {[%clk 0:00:32]}  Qe1 {[%clk 0:00:08]} 45. Rf2 {[%clk 0:00:24]}  Qe3 {[%clk 0:00:08]} 46. Kg1 {[%clk 0:00:23]}  h5 {[%clk 0:00:08]} 47. Kh1 {[%clk 0:00:20]}  Qe1+ {[%clk 0:00:08]} 48. Kh2 {[%clk 0:00:20]}  Qe3 {[%clk 0:00:09]} 49. Rf3 {[%clk 0:00:20]}  Qe1 {[%clk 0:00:08]} 50. Nf2 {[%clk 0:00:17]}  Qe5+ {[%clk 0:00:07]} 51. g3 {[%clk 0:00:15]}  h4 {[%clk 0:00:06]} 52. Nfe4 {[%clk 0:00:14]}  hxg3+ {[%clk 0:00:06]} 53. Nxg3 {[%clk 0:00:15]}  Qe1 {[%clk 0:00:06]} 54. Kg2 {[%clk 0:00:15]}  Qd2+ {[%clk 0:00:06]} 55. Nge2 {[%clk 0:00:15]}  Qe1 {[%clk 0:00:06]} 56. Rf1 {[%clk 0:00:11]}  Qd2 {[%clk 0:00:05]} 57. Rf4 {[%clk 0:00:11]}  Qd3 {[%clk 0:00:06]} 58. Rh4+ {[%clk 0:00:11]}  Kg8 {[%clk 0:00:06]} 59. Rf4 {[%clk 0:00:12]}  Kh7 {[%clk 0:00:05]} 60. Rf3 {[%clk 0:00:12]}  Qd2 {[%clk 0:00:05]} 61. Kf2 {[%clk 0:00:13]}  Qc2 {[%clk 0:00:05]} 62. Rf4 {[%clk 0:00:13]}  Qd3 {[%clk 0:00:05]} 63. Rf3 {[%clk 0:00:11]}  Qd2 {[%clk 0:00:04]} 64. Kf1 {[%clk 0:00:09]}  Kg8 {[%clk 0:00:04]} 65. Kg2 {[%clk 0:00:09]}  Qc2 {[%clk 0:00:04]} 66. Rf4 {[%clk 0:00:08]}  Qd3 {[%clk 0:00:05]} 67. h4 {[%clk 0:00:08]}  Kh7 {[%clk 0:00:04]} 68. Kf2 {[%clk 0:00:08]}  Kg8 {[%clk 0:00:04]} 69. Ke1 {[%clk 0:00:09]}  Kh7 {[%clk 0:00:02]} 70. Kf1 {[%clk 0:00:09]}  Kg8 {[%clk 0:00:02]} 71. Kf2 {[%clk 0:00:10]}  Kh7 {[%clk 0:00:03]} 72. Ne4 {[%clk 0:00:10]}  Qc2 {[%clk 0:00:02]} 73. Ng3 {[%clk 0:00:09]}  Qd3 {[%clk 0:00:03]} 74. Rf3 {[%clk 0:00:10]}  Qc2 {[%clk 0:00:03]} 75. Rc3 {[%clk 0:00:10]}  Qa2 {[%clk 0:00:03]} 76. Ne4 {[%clk 0:00:10]}  Qa7+ {[%clk 0:00:04]} 77. Re3 {[%clk 0:00:09]}  Qd7 {[%clk 0:00:04]} 78. N4g3 {[%clk 0:00:10]}  Qd5 {[%clk 0:00:04]} 79. Re4 {[%clk 0:00:10]}  Qd3 {[%clk 0:00:04]} 80. Rd4 {[%clk 0:00:10]}  Qc2 {[%clk 0:00:04]} 81. Re4 {[%clk 0:00:10]}  c3 {[%clk 0:00:04]} 82. Re3 {[%clk 0:00:10]}  Qb1 {[%clk 0:00:04]} 83. Rxc3 {[%clk 0:00:10]}  Qb6+ {[%clk 0:00:04]} 84. Re3 {[%clk 0:00:10]}  Qc5 {[%clk 0:00:04]} 85. h5 {[%clk 0:00:11]}  Qd5 {[%clk 0:00:04]} 86. Rf3 {[%clk 0:00:11]}  Qc5+ {[%clk 0:00:04]} 87. Kf1 {[%clk 0:00:11]}  Kh6 {[%clk 0:00:05]} 88. Rf4 {[%clk 0:00:12]}  Qc2 {[%clk 0:00:04]} 89. Rg4 {[%clk 0:00:11]}  Qd1+ {[%clk 0:00:05]} 90. Kf2 {[%clk 0:00:12]}  Qb3 {[%clk 0:00:05]} 91. Rg6+ {[%clk 0:00:13]}  Kh7 {[%clk 0:00:05]} 92. Kg2 {[%clk 0:00:13]}  Qd5+ {[%clk 0:00:05]} 93. Kf2 {[%clk 0:00:13]}  Qc5+ {[%clk 0:00:06]} 94. Kf3 {[%clk 0:00:14]}  Qd5+ {[%clk 0:00:06]} 95. Kg4 {[%clk 0:00:14]}  Qc4+ {[%clk 0:00:06]} 96. Kh3 {[%clk 0:00:15]}  Qd3 {[%clk 0:00:06]} 97. Nf4 {[%clk 0:00:14]}  Qf3 {[%clk 0:00:06]} 98. Ne6 {[%clk 0:00:13]}  Qf2 {[%clk 0:00:05]} 99. Rxg7+ {[%clk 0:00:13]}  Kh8 {[%clk 0:00:05]} 100. Rg6 {[%clk 0:00:14]}  Kh7 {[%clk 0:00:04]} 101. Rxf6 {[%clk 0:00:13]}  Qf3 {[%clk 0:00:05]} 102. Ng5+ {[%clk 0:00:12]} 1-0


[Site "https://www.chess.com"]

[Event "Titled Tuesday Blitz April 26 Early 2022"]
[White "De Arruda, Leandro Formes"]
[Black "Padmini, Rout"]
[WhiteFideId "22722009"]
[BlackFideId "5029295"]
[WhiteElo "1852"]
[BlackElo "2181"]
[Result "0-1"]
[Round "03"]
[TimeControl "180+1"]
[Date "2022.04.26"]
[WhiteClock "0:00:12"]
[BlackClock "0:00:15"]

1. d4 {[%clk 0:03:00]}  Nf6 {[%clk 0:02:56]} 2. Nf3 {[%clk 0:02:58]}  g6 {[%clk 0:02:54]} 3. e3 {[%clk 0:02:57]}  Bg7 {[%clk 0:02:53]} 4. Be2 {[%clk 0:02:58]}  O-O {[%clk 0:02:54]} 5. O-O {[%clk 0:02:59]}  d6 {[%clk 0:02:55]} 6. c4 {[%clk 0:02:59]}  Nbd7 {[%clk 0:02:55]} 7. Nc3 {[%clk 0:02:59]}  e5 {[%clk 0:02:56]} 8. dxe5 {[%clk 0:03:00]}  dxe5 {[%clk 0:02:56]} 9. b3 {[%clk 0:03:01]}  c6 {[%clk 0:02:56]} 10. Bb2 {[%clk 0:03:02]}  Re8 {[%clk 0:02:57]} 11. Qc2 {[%clk 0:03:01]}  Qe7 {[%clk 0:02:50]} 12. Rad1 {[%clk 0:03:01]}  Nc5 {[%clk 0:02:32]} 13. e4 {[%clk 0:02:47]}  Bg4 {[%clk 0:02:27]} 14. Ba3 {[%clk 0:02:38]}  Bxf3 {[%clk 0:02:26]} 15. Bxf3 {[%clk 0:02:35]}  Rad8 {[%clk 0:01:44]} 16. Na4 {[%clk 0:02:30]}  b6 {[%clk 0:01:39]} 17. Nxc5 {[%clk 0:02:20]}  bxc5 {[%clk 0:01:38]} 18. Qc3 {[%clk 0:02:17]}  Bf8 {[%clk 0:01:15]} 19. Qa5 {[%clk 0:02:13]}  h5 {[%clk 0:00:52]} 20. Qa6 {[%clk 0:02:05]}  Qc7 {[%clk 0:00:50]} 21. Rb1 {[%clk 0:01:33]}  Nd7 {[%clk 0:00:41]} 22. b4 {[%clk 0:01:21]}  cxb4 {[%clk 0:00:41]} 23. Bxb4 {[%clk 0:01:22]}  Bxb4 {[%clk 0:00:40]} 24. Rxb4 {[%clk 0:01:23]}  Nc5 {[%clk 0:00:40]} 25. Qa3 {[%clk 0:01:19]}  Ne6 {[%clk 0:00:40]} 26. Ra4 {[%clk 0:01:11]}  Rd7 {[%clk 0:00:39]} 27. Bd1 {[%clk 0:00:53]}  Red8 {[%clk 0:00:29]} 28. Bb3 {[%clk 0:00:52]}  c5 {[%clk 0:00:28]} 29. Ra5 {[%clk 0:00:47]}  Kg7 {[%clk 0:00:20]} 30. h3 {[%clk 0:00:46]}  h4 {[%clk 0:00:20]} 31. Qa4 {[%clk 0:00:43]}  Nd4 {[%clk 0:00:16]} 32. Qa3 {[%clk 0:00:37]}  Rc8 {[%clk 0:00:16]} 33. Ba4 {[%clk 0:00:34]}  Qxa5 {[%clk 0:00:15]} 34. Rb1 {[%clk 0:00:12]}  Rd6 {[%clk 0:00:15]} 0-1


[Site "https://www.chess.com"]

[Event "Titled Tuesday Blitz April 26 Early 2022"]
[White "Deac, Bogdan-Daniel"]
[Black "Jaferian, Koosha"]
[WhiteFideId "1226380"]
[BlackFideId "12507440"]
[WhiteElo "2648"]
[BlackElo "2030"]
[Result "1-0"]
[Round "03"]
[TimeControl "180+1"]
[Date "2022.04.26"]
[WhiteClock "0:00:37"]
[BlackClock "0:00:21"]

1. b3 {[%clk 0:03:00]}  Nf6 {[%clk 0:02:59]} 2. Bb2 {[%clk 0:03:01]}  d5 {[%clk 0:03:00]} 3. e3 {[%clk 0:03:00]}  Bf5 {[%clk 0:03:00]} 4. c4 {[%clk 0:02:59]}  e6 {[%clk 0:03:00]} 5. cxd5 {[%clk 0:03:00]}  exd5 {[%clk 0:03:01]} 6. Qf3 {[%clk 0:03:00]}  Be6 {[%clk 0:02:28]} 7. Bxf6 {[%clk 0:02:56]}  gxf6 {[%clk 0:02:28]} 8. Ne2 {[%clk 0:02:52]}  Nc6 {[%clk 0:02:29]} 9. Nf4 {[%clk 0:02:46]}  Ne5 {[%clk 0:02:16]} 10. Qh5 {[%clk 0:02:24]}  Qe7 {[%clk 0:02:11]} 11. Nxe6 {[%clk 0:02:07]}  Qxe6 {[%clk 0:02:10]} 12. Be2 {[%clk 0:02:07]}  f5 {[%clk 0:01:57]} 13. Nc3 {[%clk 0:02:01]}  O-O-O {[%clk 0:01:49]} 14. Nb5 {[%clk 0:01:58]}  Bc5 {[%clk 0:01:40]} 15. O-O {[%clk 0:01:40]}  Ng6 {[%clk 0:01:36]} 16. Rfc1 {[%clk 0:01:18]}  Bb6 {[%clk 0:01:36]} 17. Bd3 {[%clk 0:01:18]}  Ne7 {[%clk 0:01:27]} 18. a4 {[%clk 0:01:18]}  a5 {[%clk 0:01:23]} 19. b4 {[%clk 0:01:18]}  axb4 {[%clk 0:01:23]} 20. a5 {[%clk 0:01:17]}  Bxa5 {[%clk 0:00:43]} 21. Rxa5 {[%clk 0:01:15]}  c6 {[%clk 0:00:44]} 22. Nd4 {[%clk 0:00:52]}  Qd6 {[%clk 0:00:36]} 23. Qxf7 {[%clk 0:00:39]}  Rhf8 {[%clk 0:00:20]} 24. Ra8+ {[%clk 0:00:39]}  Kd7 {[%clk 0:00:20]} 25. Bxf5+ {[%clk 0:00:39]}  Kc7 {[%clk 0:00:19]} 26. Nb5+ {[%clk 0:00:37]}  Kb6 {[%clk 0:00:20]} 27. Nxd6 {[%clk 0:00:37]}  Rxf7 {[%clk 0:00:20]} 28. Rxd8 {[%clk 0:00:37]}  Rf6 {[%clk 0:00:21]} 1-0


[Site "https://www.chess.com"]

[Event "Titled Tuesday Blitz April 26 Early 2022"]
[White "Dobre, Claudiu-Cristian"]
[Black "Polster, Christian"]
[WhiteFideId "1211854"]
[BlackFideId "12965081"]
[WhiteElo "2207"]
[BlackElo "2321"]
[Result "1-0"]
[Round "03"]
[TimeControl "180+1"]
[Date "2022.04.26"]
[WhiteClock "0:00:33"]
[BlackClock "0:00:01"]

1. c4 {[%clk 0:03:00]}  e6 {[%clk 0:02:55]} 2. Nf3 {[%clk 0:02:55]}  d5 {[%clk 0:02:55]} 3. b3 {[%clk 0:02:56]}  d4 {[%clk 0:02:54]} 4. e3 {[%clk 0:02:54]}  c5 {[%clk 0:02:54]} 5. exd4 {[%clk 0:02:53]}  cxd4 {[%clk 0:02:55]} 6. d3 {[%clk 0:02:50]}  Nc6 {[%clk 0:02:55]} 7. g3 {[%clk 0:02:49]}  Bd6 {[%clk 0:02:51]} 8. Bg2 {[%clk 0:02:48]}  h6 {[%clk 0:02:49]} 9. O-O {[%clk 0:02:47]}  Nf6 {[%clk 0:02:47]} 10. Ba3 {[%clk 0:02:45]}  O-O {[%clk 0:02:44]} 11. Bxd6 {[%clk 0:02:28]}  Qxd6 {[%clk 0:02:44]} 12. a3 {[%clk 0:02:29]}  a5 {[%clk 0:02:42]} 13. Re1 {[%clk 0:02:20]}  e5 {[%clk 0:02:32]} 14. Qc2 {[%clk 0:02:20]}  Bf5 {[%clk 0:02:20]} 15. Nbd2 {[%clk 0:02:20]}  Nd7 {[%clk 0:02:14]} 16. Nh4 {[%clk 0:02:08]}  Bh7 {[%clk 0:01:59]} 17. Ne4 {[%clk 0:02:08]}  Qc7 {[%clk 0:01:55]} 18. c5 {[%clk 0:02:02]}  Kh8 {[%clk 0:01:23]} 19. Nd6 {[%clk 0:01:59]}  Rad8 {[%clk 0:00:36]} 20. Nhf5 {[%clk 0:01:58]}  h5 {[%clk 0:00:19]} 21. Rab1 {[%clk 0:01:58]}  g6 {[%clk 0:00:19]} 22. Nh4 {[%clk 0:01:51]}  Nxc5 {[%clk 0:00:17]} 23. Nxb7 {[%clk 0:01:41]}  Nxb7 {[%clk 0:00:13]} 24. Qxc6 {[%clk 0:01:38]}  Qxc6 {[%clk 0:00:13]} 25. Bxc6 {[%clk 0:01:38]}  Nc5 {[%clk 0:00:14]} 26. Bb5 {[%clk 0:01:36]}  Rb8 {[%clk 0:00:11]} 27. Bc4 {[%clk 0:01:33]}  f6 {[%clk 0:00:09]} 28. f4 {[%clk 0:01:30]}  g5 {[%clk 0:00:07]} 29. fxg5 {[%clk 0:01:28]}  Nxd3 {[%clk 0:00:06]} 30. Red1 {[%clk 0:00:39]}  Nc5 {[%clk 0:00:02]} 31. g6 {[%clk 0:00:38]}  Bg8 {[%clk 0:00:02]} 32. Nf5 {[%clk 0:00:38]}  Bxc4 {[%clk 0:00:02]} 33. g7+ {[%clk 0:00:38]}  Kh7 {[%clk 0:00:02]} 34. gxf8=N+ {[%clk 0:00:37]}  Rxf8 {[%clk 0:00:03]} 35. bxc4 {[%clk 0:00:37]}  e4 {[%clk 0:00:02]} 36. Rb5 {[%clk 0:00:37]}  Nd3 {[%clk 0:00:01]} 37. Nxd4 {[%clk 0:00:36]}  Kg6 {[%clk 0:00:01]} 38. Ne2 {[%clk 0:00:35]}  Rc8 {[%clk 0:00:01]} 39. c5 {[%clk 0:00:33]}  Nxc5 {[%clk 0:00:01]} 40. Rc1 {[%clk 0:00:33]} 1-0


[Site "https://www.chess.com"]

[Event "Titled Tuesday Blitz April 26 Early 2022"]
[White "Esipenko, Andrey"]
[Black "Moroni, Luca Jr"]
[WhiteFideId "24175439"]
[BlackFideId "865834"]
[WhiteElo "2617"]
[BlackElo "2573"]
[Result "1-0"]
[Round "03"]
[TimeControl "180+1"]
[Date "2022.04.26"]
[WhiteClock "0:01:18"]
[BlackClock "0:00:31"]

1. e4 {[%clk 0:02:58]}  d6 {[%clk 0:03:00]} 2. d4 {[%clk 0:02:58]}  e5 {[%clk 0:03:00]} 3. Nf3 {[%clk 0:02:48]}  exd4 {[%clk 0:03:00]} 4. Nxd4 {[%clk 0:02:48]}  Nf6 {[%clk 0:03:01]} 5. Nc3 {[%clk 0:02:48]}  Be7 {[%clk 0:03:01]} 6. g3 {[%clk 0:02:42]}  O-O {[%clk 0:03:00]} 7. Bg2 {[%clk 0:02:41]}  Re8 {[%clk 0:03:00]} 8. O-O {[%clk 0:02:41]}  c6 {[%clk 0:03:01]} 9. a4 {[%clk 0:02:40]}  a5 {[%clk 0:03:00]} 10. h3 {[%clk 0:02:38]}  Na6 {[%clk 0:02:59]} 11. Re1 {[%clk 0:02:37]}  Nc5 {[%clk 0:02:58]} 12. Bf4 {[%clk 0:02:37]}  Bf8 {[%clk 0:02:57]} 13. Qd2 {[%clk 0:02:36]}  Qb6 {[%clk 0:02:56]} 14. b3 {[%clk 0:02:36]}  Bd7 {[%clk 0:02:48]} 15. Rad1 {[%clk 0:02:36]}  Rad8 {[%clk 0:02:47]} 16. g4 {[%clk 0:02:35]}  Bc8 {[%clk 0:02:34]} 17. Bg5 {[%clk 0:02:31]}  Be7 {[%clk 0:02:31]} 18. Nf5 {[%clk 0:02:19]}  Bxf5 {[%clk 0:02:29]} 19. gxf5 {[%clk 0:02:20]}  Qb4 {[%clk 0:01:59]} 20. Be3 {[%clk 0:01:39]}  Nfd7 {[%clk 0:01:37]} 21. Ne2 {[%clk 0:01:24]}  Bf6 {[%clk 0:01:24]} 22. Qxb4 {[%clk 0:01:22]}  axb4 {[%clk 0:01:25]} 23. Rxd6 {[%clk 0:01:22]}  Be5 {[%clk 0:01:07]} 24. Rd2 {[%clk 0:01:21]}  Bc3 {[%clk 0:00:49]} 25. Nxc3 {[%clk 0:01:21]}  bxc3 {[%clk 0:00:49]} 26. Rd4 {[%clk 0:01:21]}  Re7 {[%clk 0:00:32]} 27. Red1 {[%clk 0:01:18]}  Rde8 {[%clk 0:00:31]} 28. b4 {[%clk 0:01:18]} 1-0


[Site "https://www.chess.com"]

[Event "Titled Tuesday Blitz April 26 Early 2022"]
[White "Estrada Nieto, Julian"]
[Black "Kosteniuk, Alexandra"]
[WhiteFideId "5101018"]
[BlackFideId "4128125"]
[WhiteElo "2252"]
[BlackElo "2469"]
[Result "1/2-1/2"]
[Round "03"]
[TimeControl "180+1"]
[Date "2022.04.26"]
[WhiteClock "0:01:05"]
[BlackClock "0:01:03"]

1. e4 {[%clk 0:03:00]}  c6 {[%clk 0:02:59]} 2. d4 {[%clk 0:02:59]}  d5 {[%clk 0:02:59]} 3. exd5 {[%clk 0:03:00]}  cxd5 {[%clk 0:03:00]} 4. Bd3 {[%clk 0:03:00]}  Nc6 {[%clk 0:03:00]} 5. c3 {[%clk 0:02:59]}  Nf6 {[%clk 0:03:00]} 6. Nf3 {[%clk 0:03:00]}  Bg4 {[%clk 0:03:00]} 7. O-O {[%clk 0:02:59]}  e6 {[%clk 0:02:53]} 8. Bf4 {[%clk 0:02:59]}  Bd6 {[%clk 0:02:53]} 9. Bxd6 {[%clk 0:02:59]}  Qxd6 {[%clk 0:02:54]} 10. Nbd2 {[%clk 0:02:59]}  O-O {[%clk 0:02:53]} 11. Qb3 {[%clk 0:02:59]}  Qc7 {[%clk 0:02:47]} 12. Rae1 {[%clk 0:02:56]}  Bxf3 {[%clk 0:02:41]} 13. Nxf3 {[%clk 0:02:55]}  Rfe8 {[%clk 0:02:41]} 14. Ne5 {[%clk 0:02:52]}  Nxe5 {[%clk 0:02:39]} 15. dxe5 {[%clk 0:02:46]}  Nd7 {[%clk 0:02:40]} 16. Qc2 {[%clk 0:02:35]}  Nxe5 {[%clk 0:02:35]} 17. Bxh7+ {[%clk 0:02:34]}  Kf8 {[%clk 0:02:35]} 18. f4 {[%clk 0:02:32]}  Qc5+ {[%clk 0:02:31]} 19. Kh1 {[%clk 0:02:31]}  Ng4 {[%clk 0:02:31]} 20. Qe2 {[%clk 0:02:26]}  Nf6 {[%clk 0:02:11]} 21. Bd3 {[%clk 0:02:25]}  Ke7 {[%clk 0:02:05]} 22. f5 {[%clk 0:02:21]}  Kf8 {[%clk 0:01:55]} 23. fxe6 {[%clk 0:02:17]}  Rxe6 {[%clk 0:01:55]} 24. Qf3 {[%clk 0:02:14]}  Rae8 {[%clk 0:01:53]} 25. Rxe6 {[%clk 0:02:10]}  Rxe6 {[%clk 0:01:54]} 26. h3 {[%clk 0:02:02]}  Qe3 {[%clk 0:01:45]} 27. Qxe3 {[%clk 0:02:00]}  Rxe3 {[%clk 0:01:45]} 28. Rd1 {[%clk 0:01:59]}  Ke7 {[%clk 0:01:42]} 29. Kg1 {[%clk 0:01:59]}  Kd6 {[%clk 0:01:27]} 30. Kf2 {[%clk 0:01:59]}  Re5 {[%clk 0:01:26]} 31. Re1 {[%clk 0:01:48]}  Ne4+ {[%clk 0:01:26]} 32. Bxe4 {[%clk 0:01:45]}  dxe4 {[%clk 0:01:27]} 33. Ke3 {[%clk 0:01:44]}  f5 {[%clk 0:01:25]} 34. Rd1+ {[%clk 0:01:43]}  Rd5 {[%clk 0:01:19]} 35. Rxd5+ {[%clk 0:01:35]}  Kxd5 {[%clk 0:01:20]} 36. g4 {[%clk 0:01:35]}  g6 {[%clk 0:01:11]} 37. gxf5 {[%clk 0:01:33]}  gxf5 {[%clk 0:01:11]} 38. Kf4 {[%clk 0:01:32]}  Kc4 {[%clk 0:01:08]} 39. Ke3 {[%clk 0:01:28]}  Kd5 {[%clk 0:01:08]} 40. Kf4 {[%clk 0:01:09]}  Kc4 {[%clk 0:01:05]} 41. Ke3 {[%clk 0:01:05]}  Kd5 {[%clk 0:01:03]} 1/2-1/2


[Site "https://www.chess.com"]

[Event "Titled Tuesday Blitz April 26 Early 2022"]
[White "Eynullayev, Atilla"]
[Black "Ning, Kaiyu"]
[WhiteFideId "13413570"]
[BlackFideId "8614750"]
[WhiteElo "1936"]
[BlackElo "2013"]
[Result "1-0"]
[Round "03"]
[TimeControl "180+1"]
[Date "2022.04.26"]
[WhiteClock "0:00:21"]
[BlackClock "0:00:02"]

1. e4 {[%clk 0:03:00]}  c5 {[%clk 0:02:59]} 2. Nf3 {[%clk 0:03:00]}  d6 {[%clk 0:03:00]} 3. d4 {[%clk 0:02:59]}  cxd4 {[%clk 0:03:00]} 4. Nxd4 {[%clk 0:03:00]}  Nf6 {[%clk 0:03:01]} 5. Nc3 {[%clk 0:03:00]}  a6 {[%clk 0:03:01]} 6. Be3 {[%clk 0:02:59]}  e5 {[%clk 0:03:01]} 7. Nb3 {[%clk 0:03:00]}  Be6 {[%clk 0:03:01]} 8. Be2 {[%clk 0:03:00]}  Be7 {[%clk 0:02:50]} 9. Nd5 {[%clk 0:02:59]}  Nbd7 {[%clk 0:02:47]} 10. Qd3 {[%clk 0:03:00]}  Rc8 {[%clk 0:02:41]} 11. c4 {[%clk 0:02:47]}  O-O {[%clk 0:02:34]} 12. O-O {[%clk 0:02:46]}  Ne8 {[%clk 0:02:29]} 13. Rac1 {[%clk 0:02:34]}  f5 {[%clk 0:02:27]} 14. Nxe7+ {[%clk 0:02:24]}  Qxe7 {[%clk 0:02:28]} 15. f4 {[%clk 0:02:25]}  Kh8 {[%clk 0:01:44]} 16. Kh1 {[%clk 0:02:18]}  fxe4 {[%clk 0:01:27]} 17. Qxe4 {[%clk 0:02:18]}  Ndf6 {[%clk 0:01:27]} 18. Qd3 {[%clk 0:02:15]}  exf4 {[%clk 0:01:17]} 19. Rxf4 {[%clk 0:02:09]}  d5 {[%clk 0:01:16]} 20. cxd5 {[%clk 0:02:06]}  Rxc1+ {[%clk 0:01:16]} 21. Bxc1 {[%clk 0:01:54]}  Nxd5 {[%clk 0:01:12]} 22. Rxf8+ {[%clk 0:01:53]}  Qxf8 {[%clk 0:01:13]} 23. Bf3 {[%clk 0:01:50]}  Nd6 {[%clk 0:01:11]} 24. Nc5 {[%clk 0:01:48]}  Bg8 {[%clk 0:01:04]} 25. h3 {[%clk 0:01:35]}  Nb4 {[%clk 0:00:55]} 26. Qd4 {[%clk 0:01:20]}  Nxa2 {[%clk 0:00:52]} 27. Bf4 {[%clk 0:01:18]}  Nf5 {[%clk 0:00:44]} 28. Qe5 {[%clk 0:01:15]}  Nb4 {[%clk 0:00:31]} 29. Bxb7 {[%clk 0:01:13]}  a5 {[%clk 0:00:30]} 30. Be4 {[%clk 0:01:10]}  Nh4 {[%clk 0:00:21]} 31. Qg5 {[%clk 0:00:42]}  h6 {[%clk 0:00:13]} 32. Qxh4 {[%clk 0:00:40]}  Qxc5 {[%clk 0:00:13]} 33. Bxh6 {[%clk 0:00:37]}  g5 {[%clk 0:00:05]} 34. Bxg5+ {[%clk 0:00:33]}  Kg7 {[%clk 0:00:05]} 35. Qh6+ {[%clk 0:00:28]}  Kf7 {[%clk 0:00:05]} 36. Qg6+ {[%clk 0:00:25]}  Kf8 {[%clk 0:00:03]} 37. Qf6+ {[%clk 0:00:22]}  Bf7 {[%clk 0:00:02]} 38. Qd8+ {[%clk 0:00:20]}  Kg7 {[%clk 0:00:02]} 39. Bf6+ {[%clk 0:00:21]}  Kh6 {[%clk 0:00:02]} 40. Qh8# {[%clk 0:00:21]} 1-0


[Site "https://www.chess.com"]